[Event "Early-Titled-Tuesday-Blitz-April-16-2024"]
[Site "Chess.com"]
[Date "2024.04.16"]
[Round "10"]
[White "JACK_BAU3R"]
[Black "Darius321"]
[Result "1-0"]
[WhiteElo "1989"]
[BlackElo "2298"]
[TimeControl "180+1"]
[EndTime "10:00:13 PDT"]
[Termination "JACK_BAU3R won on time"]

1. d4 {[%clk 0:02:57.6]} 1... d5 {[%clk 0:02:59.5]} 2. c3 {[%clk 0:02:57.4]}
2... Bf5 {[%clk 0:02:48.4]} 3. Qb3 {[%clk 0:02:54.5]} 3... b6 {[%clk 0:02:42.9]}
4. Bf4 {[%clk 0:02:53.3]} 4... e6 {[%clk 0:02:37.3]} 5. e3 {[%clk 0:02:53.4]}
5... Nf6 {[%clk 0:02:36.8]} 6. Nd2 {[%clk 0:02:52.8]} 6... Bd6 {[%clk
0:02:36.7]} 7. Bg3 {[%clk 0:02:52.7]} 7... O-O {[%clk 0:02:35.2]} 8. Ngf3 {[%clk
0:02:52.8]} 8... c5 {[%clk 0:02:35.2]} 9. Nh4 {[%clk 0:02:52.2]} 9... Bg4 {[%clk
0:02:32.7]} 10. dxc5 {[%clk 0:02:39.6]} 10... bxc5 {[%clk 0:02:29.2]} 11. Qb7
{[%clk 0:02:34.7]} 11... Bxg3 {[%clk 0:02:26]} 12. hxg3 {[%clk 0:02:31.5]} 12...
Nbd7 {[%clk 0:02:25.5]} 13. Qb3 {[%clk 0:02:26.9]} 13... c4 {[%clk 0:02:22.9]}
14. Qc2 {[%clk 0:02:26]} 14... Nc5 {[%clk 0:02:18.5]} 15. f3 {[%clk 0:02:24.7]}
15... Bh5 {[%clk 0:02:16.2]} 16. g4 {[%clk 0:02:25.1]} 16... Bg6 {[%clk
0:02:16.1]} 17. Nxg6 {[%clk 0:02:25.7]} 17... hxg6 {[%clk 0:02:02.8]} 18. g5
{[%clk 0:02:24.9]} 18... Nfd7 {[%clk 0:01:58.1]} 19. f4 {[%clk 0:02:19.3]} 19...
e5 {[%clk 0:01:57.3]} 20. O-O-O {[%clk 0:02:16.6]} 20... e4 {[%clk 0:01:55.8]}
21. g4 {[%clk 0:01:46.8]} 21... Nd3+ {[%clk 0:01:55.1]} 22. Bxd3 {[%clk
0:01:41.2]} 22... exd3 {[%clk 0:01:55.2]} 23. Qb1 {[%clk 0:01:40.6]} 23... Nc5
{[%clk 0:01:53.2]} 24. Nf3 {[%clk 0:01:38.1]} 24... Ne4 {[%clk 0:01:40.8]} 25.
Rh2 {[%clk 0:01:38.2]} 25... Ng3 {[%clk 0:01:09.8]} 26. Rh3 {[%clk 0:01:10.2]}
26... Ne2+ {[%clk 0:01:07.3]} 27. Kd2 {[%clk 0:01:10.1]} 27... Re8 {[%clk
0:01:07.2]} 28. Rdh1 {[%clk 0:00:54.9]} 28... Kf8 {[%clk 0:01:07.3]} 29. Ne5
{[%clk 0:00:45.7]} 29... Rxe5 {[%clk 0:01:05.9]} 30. Rh8+ {[%clk 0:00:45.6]}
30... Ke7 {[%clk 0:01:04.4]} 31. Rxd8 {[%clk 0:00:46.5]} 31... Rxd8 {[%clk
0:00:59]} 32. fxe5 {[%clk 0:00:46.3]} 32... Ng3 {[%clk 0:00:53]} 33. Qg1 {[%clk
0:00:35.4]} 33... Ne4+ {[%clk 0:00:50]} 34. Kc1 {[%clk 0:00:32.1]} 34... Rb8
{[%clk 0:00:48.2]} 35. Rh7 {[%clk 0:00:26]} 35... Nxg5 {[%clk 0:00:36.8]} 36.
Rxg7 {[%clk 0:00:24.2]} 36... Rh8 {[%clk 0:00:25.5]} 37. Qf1 {[%clk 0:00:19.1]}
37... d2+ {[%clk 0:00:18.6]} 38. Kxd2 {[%clk 0:00:17.4]} 38... Ne4+ {[%clk
0:00:18]} 39. Kc1 {[%clk 0:00:16.8]} 39... Rf8 {[%clk 0:00:13.1]} 40. Qf4 {[%clk
0:00:10.4]} 40... Ke6 {[%clk 0:00:07.6]} 41. g5 {[%clk 0:00:09.9]} 41... a5
{[%clk 0:00:06.2]} 42. Rh7 {[%clk 0:00:08.7]} 42... a4 {[%clk 0:00:06]} 43. a3
{[%clk 0:00:08.4]} 43... Nc5 {[%clk 0:00:01.4]} 44. Qf6+ {[%clk 0:00:06.5]}
44... Kd7 {[%clk 0:00:01.7]} 45. Rxf7+ {[%clk 0:00:06.4]} 45... Rxf7 {[%clk
0:00:01.2]} 46. Qxf7+ {[%clk 0:00:07.3]} 46... Kc6 {[%clk 0:00:01]} 47. Qxg6+
{[%clk 0:00:07.9]} 1-0

[Event "Early-Titled-Tuesday-Blitz-April-16-2024"]
[Site "Chess.com"]
[Date "2024.04.16"]
[Round "10"]
[White "RobertoJBM"]
[Black "YegoryoCh"]
[Result "0-1"]
[WhiteElo "2857"]
[BlackElo "2593"]
[TimeControl "180+1"]
[EndTime "10:00:15 PDT"]
[Termination "YegoryoCh won by resignation"]

1. e4 {[%clk 0:03:00.9]} 1... e5 {[%clk 0:02:57.2]} 2. Nf3 {[%clk 0:02:59.8]}
2... Nc6 {[%clk 0:02:57.3]} 3. Bb5 {[%clk 0:02:58.3]} 3... a6 {[%clk 0:02:57.3]}
4. Ba4 {[%clk 0:02:57.5]} 4... d6 {[%clk 0:02:57.6]} 5. c3 {[%clk 0:02:56.2]}
5... Bd7 {[%clk 0:02:57.7]} 6. O-O {[%clk 0:02:55.2]} 6... g5 {[%clk 0:02:57.5]}
7. d4 {[%clk 0:02:49.9]} 7... g4 {[%clk 0:02:57.5]} 8. Ne1 {[%clk 0:02:48.3]}
8... h5 {[%clk 0:02:57.4]} 9. f4 {[%clk 0:02:46.3]} 9... exd4 {[%clk 0:02:57.6]}
10. cxd4 {[%clk 0:02:45.5]} 10... d5 {[%clk 0:02:58.3]} 11. e5 {[%clk
0:02:40.8]} 11... Nh6 {[%clk 0:02:58.3]} 12. Nc3 {[%clk 0:02:32]} 12... Nf5
{[%clk 0:02:58.5]} 13. Ne2 {[%clk 0:02:32.2]} 13... b6 {[%clk 0:02:26.1]} 14.
Nc2 {[%clk 0:02:29.9]} 14... b5 {[%clk 0:02:26.2]} 15. Bb3 {[%clk 0:02:29]}
15... Na5 {[%clk 0:02:26.9]} 16. Bxd5 {[%clk 0:02:27.1]} 16... Bc6 {[%clk
0:02:16.5]} 17. Bxc6+ {[%clk 0:02:25.8]} 17... Nxc6 {[%clk 0:02:17.4]} 18. d5
{[%clk 0:02:16.4]} 18... Bc5+ {[%clk 0:02:13.5]} 19. Kh1 {[%clk 0:02:16.4]}
19... h4 {[%clk 0:02:10.9]} 20. dxc6 {[%clk 0:01:57.3]} 20... Ng3+ {[%clk
0:01:56.5]} 21. Nxg3 {[%clk 0:01:55.6]} 21... hxg3 {[%clk 0:01:57.4]} 22. Qxd8+
{[%clk 0:01:48.2]} 22... Rxd8 {[%clk 0:01:58.3]} 23. h3 {[%clk 0:01:34.9]} 23...
Rd3 {[%clk 0:01:47.4]} 24. f5 {[%clk 0:01:25.8]} 24... gxh3 {[%clk 0:01:41.6]}
25. Be3 {[%clk 0:01:00.9]} 25... hxg2+ {[%clk 0:01:28.9]} 26. Kxg2 {[%clk
0:00:57.5]} 26... Rh2+ {[%clk 0:01:28.7]} 27. Kf3 {[%clk 0:00:48.3]} 27... Rxc2
{[%clk 0:01:10.4]} 28. Rae1 {[%clk 0:00:47.9]} 28... g2 {[%clk 0:00:33]} 29. Rg1
{[%clk 0:00:46.4]} 29... Rxb2 {[%clk 0:00:33.3]} 30. Ke4 {[%clk 0:00:44.6]}
30... Rxe3+ {[%clk 0:00:23.5]} 31. Rxe3 {[%clk 0:00:44.3]} 31... Bxe3 {[%clk
0:00:24.4]} 32. Kxe3 {[%clk 0:00:45.2]} 32... Ke7 {[%clk 0:00:19.6]} 33. a3
{[%clk 0:00:41.5]} 33... a5 {[%clk 0:00:16.9]} 34. Kd4 {[%clk 0:00:36.5]} 34...
b4 {[%clk 0:00:05.4]} 35. axb4 {[%clk 0:00:28.4]} 35... axb4 {[%clk 0:00:03.8]}
36. Kc4 {[%clk 0:00:28.4]} 36... Kf8 {[%clk 0:00:01.4]} 37. Kd3 {[%clk
0:00:24.4]} 37... Kg8 {[%clk 0:00:01.1]} 38. Kd4 {[%clk 0:00:21.9]} 38... Kh7
{[%clk 0:00:01.5]} 39. Ke4 {[%clk 0:00:21]} 39... Kh6 {[%clk 0:00:01.7]} 40. Kf4
{[%clk 0:00:20.9]} 40... Kg7 {[%clk 0:00:01.7]} 41. Ke4 {[%clk 0:00:19.6]} 41...
b3 {[%clk 0:00:02.4]} 42. Kd3 {[%clk 0:00:19.8]} 42... Rf2 {[%clk 0:00:02.7]}
43. Re1 {[%clk 0:00:17]} 43... Rf1 {[%clk 0:00:01.7]} 44. f6+ {[%clk 0:00:14.6]}
44... Kg6 {[%clk 0:00:01.7]} 45. Re3 {[%clk 0:00:15.5]} 45... g1=Q {[%clk
0:00:02.1]} 46. Re2 {[%clk 0:00:15.1]} 46... Rd1+ {[%clk 0:00:02.5]} 47. Kc4
{[%clk 0:00:15.1]} 47... Qd4+ {[%clk 0:00:03]} 48. Kb5 {[%clk 0:00:15.5]} 48...
Qd3+ {[%clk 0:00:03.6]} 49. Ka5 {[%clk 0:00:14.6]} 49... Qxe2 {[%clk 0:00:04.5]}
50. e6 {[%clk 0:00:14.1]} 50... Qxe6 {[%clk 0:00:04.7]} 51. Kb4 {[%clk 0:00:15]}
51... b2 {[%clk 0:00:05]} 0-1

[Event "Early-Titled-Tuesday-Blitz-April-16-2024"]
[Site "Chess.com"]
[Date "2024.04.16"]
[Round "10"]
[White "vasblesk"]
[Black "Zhigalko_Sergei"]
[Result "0-1"]
[WhiteElo "2820"]
[BlackElo "2933"]
[TimeControl "180+1"]
[EndTime "10:00:18 PDT"]
[Termination "Zhigalko_Sergei won by resignation"]

1. d4 {[%clk 0:03:00.9]} 1... Nf6 {[%clk 0:03:00.2]} 2. g3 {[%clk 0:03:00.1]}
2... d5 {[%clk 0:02:55.4]} 3. Bg2 {[%clk 0:03:00.6]} 3... Bf5 {[%clk 0:02:55.5]}
4. Nf3 {[%clk 0:03:01.5]} 4... e6 {[%clk 0:02:55.5]} 5. O-O {[%clk 0:03:01.7]}
5... c6 {[%clk 0:02:55.7]} 6. c4 {[%clk 0:03:01.9]} 6... Nbd7 {[%clk 0:02:55.8]}
7. Qb3 {[%clk 0:02:58.6]} 7... Qb6 {[%clk 0:02:55.2]} 8. c5 {[%clk 0:02:59.3]}
8... Qa6 {[%clk 0:02:50.6]} 9. Re1 {[%clk 0:02:52.2]} 9... b6 {[%clk 0:02:50.7]}
10. cxb6 {[%clk 0:02:45.7]} 10... axb6 {[%clk 0:02:51.6]} 11. Nc3 {[%clk
0:02:40.8]} 11... Be7 {[%clk 0:02:48.6]} 12. Nh4 {[%clk 0:02:40.5]} 12... Bg4
{[%clk 0:02:34.5]} 13. h3 {[%clk 0:02:32.6]} 13... Bh5 {[%clk 0:02:34.6]} 14. g4
{[%clk 0:02:31]} 14... Bg6 {[%clk 0:02:34.3]} 15. Nxg6 {[%clk 0:02:31.1]} 15...
hxg6 {[%clk 0:02:34.5]} 16. e4 {[%clk 0:02:31.7]} 16... dxe4 {[%clk 0:02:17.5]}
17. Nxe4 {[%clk 0:02:28.9]} 17... Nd5 {[%clk 0:02:16.3]} 18. Nc3 {[%clk
0:02:25.8]} 18... b5 {[%clk 0:01:25.4]} 19. Bd2 {[%clk 0:02:09.5]} 19... N7b6
{[%clk 0:01:13.6]} 20. Nxd5 {[%clk 0:02:04]} 20... Nxd5 {[%clk 0:01:01.2]} 21.
Bxd5 {[%clk 0:02:01]} 21... cxd5 {[%clk 0:01:00.3]} 22. Bb4 {[%clk 0:02:01.6]}
22... Bxb4 {[%clk 0:00:51]} 23. Qxb4 {[%clk 0:02:02.5]} 23... Rxh3 {[%clk
0:00:50.3]} 24. Rac1 {[%clk 0:01:53.3]} 24... Qb6 {[%clk 0:00:29.8]} 25. a4
{[%clk 0:01:44.8]} 25... Qb8 {[%clk 0:00:22.3]} 26. Re5 {[%clk 0:01:18.6]} 26...
bxa4 {[%clk 0:00:19.3]} 27. Qc5 {[%clk 0:01:14.6]} 27... Rb3 {[%clk 0:00:13.9]}
28. Qxd5 {[%clk 0:01:03]} 28... Kf8 {[%clk 0:00:14.1]} 29. Qe4 {[%clk
0:00:35.6]} 29... Rxb2 {[%clk 0:00:11.9]} 30. d5 {[%clk 0:00:34.1]} 30... Rb4
{[%clk 0:00:12.2]} 31. Rc8+ {[%clk 0:00:29.2]} 31... Qxc8 {[%clk 0:00:10.3]} 32.
Qxb4+ {[%clk 0:00:29.8]} 32... Kg8 {[%clk 0:00:10.4]} 33. dxe6 {[%clk
0:00:30.7]} 33... fxe6 {[%clk 0:00:08.9]} 34. Re3 {[%clk 0:00:27]} 34... a3
{[%clk 0:00:09.4]} 35. Re1 {[%clk 0:00:23.3]} 35... a2 {[%clk 0:00:09.3]} 36.
Qd4 {[%clk 0:00:23.7]} 36... Qd8 {[%clk 0:00:06.8]} 37. Qa1 {[%clk 0:00:14.3]}
37... Qf6 {[%clk 0:00:06.4]} 38. Kg2 {[%clk 0:00:12.8]} 38... Qxa1 {[%clk
0:00:06.3]} 39. Rxa1 {[%clk 0:00:13.7]} 39... Ra3 {[%clk 0:00:06.4]} 40. f4
{[%clk 0:00:13.5]} 40... Kf7 {[%clk 0:00:06.4]} 41. g5 {[%clk 0:00:14.2]} 41...
e5 {[%clk 0:00:06.3]} 42. fxe5 {[%clk 0:00:15.1]} 42... Ke6 {[%clk 0:00:06.6]}
43. Kf2 {[%clk 0:00:15.7]} 43... Kxe5 {[%clk 0:00:07.1]} 44. Ke2 {[%clk
0:00:16.6]} 44... Kf5 {[%clk 0:00:07.2]} 45. Kd2 {[%clk 0:00:17.5]} 45... Kxg5
{[%clk 0:00:06.8]} 46. Kc2 {[%clk 0:00:18.4]} 46... Ra8 {[%clk 0:00:05.1]} 47.
Kb2 {[%clk 0:00:18.7]} 47... Kf5 {[%clk 0:00:04.9]} 48. Rf1+ {[%clk 0:00:18.9]}
48... Ke4 {[%clk 0:00:05.4]} 49. Re1+ {[%clk 0:00:19.2]} 49... Kf3 {[%clk
0:00:05.3]} 50. Ka1 {[%clk 0:00:19.4]} 50... g5 {[%clk 0:00:05.4]} 51. Re7
{[%clk 0:00:19.6]} 51... g4 {[%clk 0:00:05.3]} 52. Rxg7 {[%clk 0:00:19.8]} 52...
g3 {[%clk 0:00:05.7]} 53. Rf7+ {[%clk 0:00:20.5]} 53... Kg2 {[%clk 0:00:06.1]}
54. Rg7 {[%clk 0:00:20.4]} 54... Kf2 {[%clk 0:00:06.3]} 55. Rf7+ {[%clk
0:00:20.9]} 55... Kg1 {[%clk 0:00:06.5]} 56. Rg7 {[%clk 0:00:21.2]} 56... g2
{[%clk 0:00:06.7]} 57. Rg6 {[%clk 0:00:21.9]} 57... Rf8 {[%clk 0:00:06.3]} 58.
Kxa2 {[%clk 0:00:22]} 58... Kf1 {[%clk 0:00:06.8]} 59. Kb3 {[%clk 0:00:21.7]}
59... g1=Q {[%clk 0:00:07.1]} 60. Rxg1+ {[%clk 0:00:22.4]} 60... Kxg1 {[%clk
0:00:07.4]} 0-1

[Event "Early-Titled-Tuesday-Blitz-April-16-2024"]
[Site "Chess.com"]
[Date "2024.04.16"]
[Round "10"]
[White "Vse_po_kaify"]
[Black "ljuks68"]
[Result "1-0"]
[WhiteElo "2582"]
[BlackElo "2391"]
[TimeControl "180+1"]
[EndTime "10:00:20 PDT"]
[Termination "Vse_po_kaify won on time"]

1. e4 {[%clk 0:02:59.6]} 1... e6 {[%clk 0:02:39.2]} 2. d4 {[%clk 0:02:57.9]}
2... d5 {[%clk 0:02:39.6]} 3. Bd3 {[%clk 0:02:58.5]} 3... dxe4 {[%clk
0:02:39.4]} 4. Bxe4 {[%clk 0:02:59.1]} 4... Nf6 {[%clk 0:02:40]} 5. Bf3 {[%clk
0:02:59.8]} 5... Nbd7 {[%clk 0:02:40.7]} 6. Nc3 {[%clk 0:02:59]} 6... Bd6 {[%clk
0:02:38.9]} 7. Bg5 {[%clk 0:02:58.2]} 7... O-O {[%clk 0:02:36.8]} 8. Qd2 {[%clk
0:02:50]} 8... Be7 {[%clk 0:02:35.5]} 9. O-O-O {[%clk 0:02:48.4]} 9... c6 {[%clk
0:02:35.6]} 10. h4 {[%clk 0:02:47.6]} 10... Nd5 {[%clk 0:02:35.8]} 11. Ne4
{[%clk 0:02:43.9]} 11... b5 {[%clk 0:02:27.5]} 12. Ne2 {[%clk 0:02:36.3]} 12...
b4 {[%clk 0:02:24.7]} 13. Kb1 {[%clk 0:02:30.6]} 13... a5 {[%clk 0:02:24.2]} 14.
Nf4 {[%clk 0:02:25.7]} 14... a4 {[%clk 0:02:20.2]} 15. Nxd5 {[%clk 0:02:24.4]}
15... cxd5 {[%clk 0:02:19]} 16. Bxe7 {[%clk 0:02:14.7]} 16... Qxe7 {[%clk
0:02:18.3]} 17. Ng5 {[%clk 0:02:15.3]} 17... b3 {[%clk 0:02:13.3]} 18. Qd3
{[%clk 0:02:11.8]} 18... bxc2+ {[%clk 0:02:05.3]} 19. Qxc2 {[%clk 0:02:09.4]}
19... Nf6 {[%clk 0:02:05.1]} 20. Rhe1 {[%clk 0:02:06.1]} 20... Ba6 {[%clk
0:01:29.1]} 21. Bxd5 {[%clk 0:01:53.2]} 21... Rfc8 {[%clk 0:00:57.4]} 22. Bc6
{[%clk 0:01:50.6]} 22... h6 {[%clk 0:00:47.7]} 23. Ne4 {[%clk 0:01:46.1]} 23...
Bb7 {[%clk 0:00:27.3]} 24. d5 {[%clk 0:01:28.3]} 24... Nxd5 {[%clk 0:00:24.7]}
25. Bxb7 {[%clk 0:01:01]} 25... Rxc2 {[%clk 0:00:20.1]} 26. Bxa8 {[%clk
0:01:01.5]} 26... Rc8 {[%clk 0:00:12.4]} 27. Bxd5 {[%clk 0:00:56.2]} 27... exd5
{[%clk 0:00:12.6]} 28. Nc3 {[%clk 0:00:56.9]} 28... Qf6 {[%clk 0:00:10.3]} 29.
Nxd5 {[%clk 0:00:56.6]} 29... Qf5+ {[%clk 0:00:08]} 30. Ka1 {[%clk 0:00:57.1]}
30... Kh7 {[%clk 0:00:07.4]} 31. Ne7 {[%clk 0:00:55.6]} 31... Qg4 {[%clk
0:00:07.5]} 32. Nxc8 {[%clk 0:00:52.1]} 32... Qxc8 {[%clk 0:00:07.6]} 33. g3
{[%clk 0:00:42.5]} 33... Qc2 {[%clk 0:00:07.1]} 34. Rf1 {[%clk 0:00:36.3]} 34...
h5 {[%clk 0:00:06.1]} 35. a3 {[%clk 0:00:35.5]} 35... g6 {[%clk 0:00:04.9]} 36.
Rde1 {[%clk 0:00:35]} 36... Kg7 {[%clk 0:00:04.7]} 37. Re3 {[%clk 0:00:33.6]}
37... Qd2 {[%clk 0:00:02.7]} 38. Rc3 {[%clk 0:00:33]} 38... Qe2 {[%clk
0:00:02.2]} 39. Rcc1 {[%clk 0:00:32.8]} 39... Qd2 {[%clk 0:00:02]} 40. Ka2
{[%clk 0:00:32.8]} 40... Qe2 {[%clk 0:00:02.1]} 41. Rce1 {[%clk 0:00:33]} 41...
Qd2 {[%clk 0:00:02.4]} 42. Re3 {[%clk 0:00:32.8]} 42... Qc2 {[%clk 0:00:02.4]}
43. Rc3 {[%clk 0:00:31.2]} 43... Qd2 {[%clk 0:00:02.6]} 44. Rfc1 {[%clk
0:00:31.7]} 44... Qxf2 {[%clk 0:00:02.7]} 45. R1c2 {[%clk 0:00:32.4]} 45... Qf5
{[%clk 0:00:02.1]} 46. Rd2 {[%clk 0:00:31]} 46... Qe5 {[%clk 0:00:02.1]} 47. Kb1
{[%clk 0:00:30.3]} 47... Qe4+ {[%clk 0:00:02.2]} 48. Kc1 {[%clk 0:00:30.3]}
48... Qe1+ {[%clk 0:00:02.2]} 49. Kc2 {[%clk 0:00:30.6]} 49... Qe4+ {[%clk
0:00:02.8]} 50. Rcd3 {[%clk 0:00:30.9]} 50... f5 {[%clk 0:00:02.6]} 51. Kc3
{[%clk 0:00:30.4]} 51... f4 {[%clk 0:00:02.7]} 52. gxf4 {[%clk 0:00:29.1]} 52...
Qxf4 {[%clk 0:00:02.9]} 53. Rd7+ {[%clk 0:00:29.3]} 53... Kf6 {[%clk 0:00:03]}
54. R2d6+ {[%clk 0:00:28]} 54... Kf5 {[%clk 0:00:03.3]} 55. Rf7+ {[%clk
0:00:27.8]} 55... Ke5 {[%clk 0:00:02.2]} 56. Rxf4 {[%clk 0:00:27.8]} 1-0

[Event "Early-Titled-Tuesday-Blitz-April-16-2024"]
[Site "Chess.com"]
[Date "2024.04.16"]
[Round "10"]
[White "albi1999"]
[Black "ural58"]
[Result "1-0"]
[WhiteElo "2659"]
[BlackElo "2490"]
[TimeControl "180+1"]
[EndTime "10:00:22 PDT"]
[Termination "albi1999 won on time"]

1. d4 {[%clk 0:02:51]} 1... d5 {[%clk 0:02:59.8]} 2. Nc3 {[%clk 0:02:50.6]} 2...
Nf6 {[%clk 0:02:58.8]} 3. Bf4 {[%clk 0:02:51.2]} 3... c5 {[%clk 0:02:53.4]} 4.
e3 {[%clk 0:02:50.5]} 4... e6 {[%clk 0:02:51.4]} 5. g4 {[%clk 0:02:42.3]} 5...
cxd4 {[%clk 0:02:49.5]} 6. exd4 {[%clk 0:02:35.6]} 6... Bb4 {[%clk 0:02:49.4]}
7. g5 {[%clk 0:02:25.1]} 7... Ne4 {[%clk 0:02:48.4]} 8. Ne2 {[%clk 0:02:25.2]}
8... Qb6 {[%clk 0:02:40.7]} 9. f3 {[%clk 0:02:19.5]} 9... Nxc3 {[%clk
0:02:37.4]} 10. bxc3 {[%clk 0:02:19.1]} 10... Bd6 {[%clk 0:02:35.6]} 11. h4
{[%clk 0:02:16.1]} 11... Bd7 {[%clk 0:02:31.6]} 12. Rb1 {[%clk 0:02:11]} 12...
Qc7 {[%clk 0:02:29]} 13. Bxd6 {[%clk 0:01:44.4]} 13... Qxd6 {[%clk 0:02:28.5]}
14. Rxb7 {[%clk 0:01:45.3]} 14... O-O {[%clk 0:02:25.2]} 15. Qb1 {[%clk
0:01:43.7]} 15... Nc6 {[%clk 0:02:23.1]} 16. Kf2 {[%clk 0:01:39.8]} 16... e5
{[%clk 0:02:21.3]} 17. dxe5 {[%clk 0:01:37.9]} 17... Nxe5 {[%clk 0:02:19.3]} 18.
Qb4 {[%clk 0:01:37.8]} 18... Qg6 {[%clk 0:02:00.5]} 19. Nd4 {[%clk 0:01:34.7]}
19... Bf5 {[%clk 0:01:41.3]} 20. Re7 {[%clk 0:01:22.7]} 20... Rae8 {[%clk
0:01:28.1]} 21. Rxe8 {[%clk 0:01:20.6]} 21... Rxe8 {[%clk 0:01:27.9]} 22. Bb5
{[%clk 0:01:18.7]} 22... Rb8 {[%clk 0:01:23.2]} 23. Qe7 {[%clk 0:01:16.3]} 23...
Nxf3 {[%clk 0:00:08.9]} 24. Nxf3 {[%clk 0:01:09.3]} 24... Be4 {[%clk 0:00:09]}
25. Qe5 {[%clk 0:01:01.2]} 25... Qb6+ {[%clk 0:00:08.7]} 26. Kg3 {[%clk
0:00:36.8]} 26... Qxb5 {[%clk 0:00:08.9]} 27. Nd4 {[%clk 0:00:37]} 27... Qe8
{[%clk 0:00:07.2]} 28. Qxe8+ {[%clk 0:00:32.7]} 28... Rxe8 {[%clk 0:00:07.9]}
29. Rb1 {[%clk 0:00:33]} 29... Rc8 {[%clk 0:00:08.1]} 30. Kf4 {[%clk 0:00:31.7]}
30... h6 {[%clk 0:00:08.2]} 31. Rb3 {[%clk 0:00:30.3]} 31... hxg5+ {[%clk
0:00:08]} 32. hxg5 {[%clk 0:00:31.2]} 32... a5 {[%clk 0:00:07.9]} 33. Ra3 {[%clk
0:00:31.4]} 33... f6 {[%clk 0:00:06.7]} 34. gxf6 {[%clk 0:00:30.5]} 34... gxf6
{[%clk 0:00:07.6]} 35. Rxa5 {[%clk 0:00:19.3]} 35... Rxc3 {[%clk 0:00:06.7]} 36.
Ra7 {[%clk 0:00:10.7]} 36... Rc4 {[%clk 0:00:03.6]} 37. Ke3 {[%clk 0:00:07.2]}
37... Bxc2 {[%clk 0:00:03.7]} 38. Nxc2 {[%clk 0:00:03.9]} 38... Rxc2 {[%clk
0:00:03.8]} 39. Kd4 {[%clk 0:00:04.8]} 39... Rd2+ {[%clk 0:00:04]} 40. Kc5
{[%clk 0:00:05.3]} 40... f5 {[%clk 0:00:03.8]} 41. a4 {[%clk 0:00:05.8]} 41...
f4 {[%clk 0:00:04]} 42. a5 {[%clk 0:00:04.5]} 42... f3 {[%clk 0:00:04.2]} 43.
Ra6 {[%clk 0:00:04.5]} 43... Kg7 {[%clk 0:00:03.2]} 44. Ra7+ {[%clk 0:00:03.7]}
44... Kg6 {[%clk 0:00:03.5]} 45. Ra8 {[%clk 0:00:04.3]} 45... Kf5 {[%clk
0:00:03.1]} 46. Rf8+ {[%clk 0:00:04.3]} 46... Ke4 {[%clk 0:00:03.4]} 47. a6
{[%clk 0:00:04.6]} 47... Ra2 {[%clk 0:00:01]} 48. Kb6 {[%clk 0:00:04.8]} 48...
d4 {[%clk 0:00:01.6]} 49. Re8+ {[%clk 0:00:04.8]} 49... Kd3 {[%clk 0:00:01.4]}
50. a7 {[%clk 0:00:05.7]} 1-0

[Event "Early-Titled-Tuesday-Blitz-April-16-2024"]
[Site "Chess.com"]
[Date "2024.04.16"]
[Round "10"]
[White "Nimrod_Veinberg"]
[Black "2Coaches1Profile"]
[Result "1-0"]
[WhiteElo "2715"]
[BlackElo "2560"]
[TimeControl "180+1"]
[EndTime "10:00:23 PDT"]
[Termination "Nimrod_Veinberg won by resignation"]

1. e4 {[%clk 0:03:00.9]} 1... Nf6 {[%clk 0:02:58.1]} 2. e5 {[%clk 0:02:58]} 2...
Nd5 {[%clk 0:02:58.2]} 3. c4 {[%clk 0:02:58.1]} 3... Nb6 {[%clk 0:02:58.1]} 4.
d4 {[%clk 0:02:58.7]} 4... d6 {[%clk 0:02:58.2]} 5. f4 {[%clk 0:02:59.4]} 5...
g6 {[%clk 0:02:57.6]} 6. Nc3 {[%clk 0:02:39]} 6... Bg7 {[%clk 0:02:56.5]} 7. Be3
{[%clk 0:02:39.6]} 7... Be6 {[%clk 0:02:52]} 8. b3 {[%clk 0:02:35.3]} 8... O-O
{[%clk 0:02:49.6]} 9. Be2 {[%clk 0:02:33.2]} 9... dxe5 {[%clk 0:02:25.6]} 10.
fxe5 {[%clk 0:02:34.1]} 10... Bf5 {[%clk 0:02:22.9]} 11. Nf3 {[%clk 0:02:26.6]}
11... c5 {[%clk 0:02:08.4]} 12. d5 {[%clk 0:02:24.1]} 12... N6d7 {[%clk
0:02:03.4]} 13. Rc1 {[%clk 0:02:13.4]} 13... Nxe5 {[%clk 0:01:57.2]} 14. Nxe5
{[%clk 0:02:12.9]} 14... Bxe5 {[%clk 0:01:58.1]} 15. Bxc5 {[%clk 0:02:13]} 15...
Na6 {[%clk 0:01:52.2]} 16. Bf2 {[%clk 0:02:05.6]} 16... e6 {[%clk 0:01:44.6]}
17. O-O {[%clk 0:02:00.1]} 17... exd5 {[%clk 0:01:40.5]} 18. Nxd5 {[%clk
0:01:58.4]} 18... Nc7 {[%clk 0:01:34.9]} 19. Bf3 {[%clk 0:01:57.4]} 19... Nxd5
{[%clk 0:01:33.3]} 20. Qxd5 {[%clk 0:01:58.3]} 20... Qc7 {[%clk 0:01:30.8]} 21.
Qxb7 {[%clk 0:01:49.4]} 21... Bxh2+ {[%clk 0:01:23.5]} 22. Kh1 {[%clk 0:01:50]}
22... Qf4 {[%clk 0:01:20.9]} 23. Qe7 {[%clk 0:01:46.1]} 23... Rae8 {[%clk
0:01:01.9]} 24. Qh4 {[%clk 0:01:44.5]} 24... Bd3 {[%clk 0:01:00.9]} 25. Qxh2
{[%clk 0:01:38.8]} 25... Qd2 {[%clk 0:00:47.3]} 26. Rcd1 {[%clk 0:01:27.1]}
26... Qc2 {[%clk 0:00:42.7]} 27. Bd4 {[%clk 0:01:10.8]} 27... Bxf1 {[%clk
0:00:42]} 28. Rxf1 {[%clk 0:01:09.6]} 28... Qd2 {[%clk 0:00:29.5]} 29. Bc5
{[%clk 0:00:49.1]} 29... Re1 {[%clk 0:00:27.5]} 30. Rxe1 {[%clk 0:00:32.9]}
30... Qxe1+ {[%clk 0:00:27]} 31. Bg1 {[%clk 0:00:32.5]} 31... Rd8 {[%clk
0:00:20.3]} 32. Bd5 {[%clk 0:00:23.9]} 32... Re8 {[%clk 0:00:19]} 33. Qf4 {[%clk
0:00:22.6]} 33... Re7 {[%clk 0:00:16.7]} 34. Kh2 {[%clk 0:00:21.9]} 34... h6
{[%clk 0:00:11.8]} 35. Bd4 {[%clk 0:00:20.2]} 35... g5 {[%clk 0:00:10.7]} 36.
Qg3 {[%clk 0:00:17.7]} 36... Qd1 {[%clk 0:00:09.3]} 37. Bf6 {[%clk 0:00:09.1]}
37... Qh5+ {[%clk 0:00:07.2]} 38. Qh3 {[%clk 0:00:09.4]} 38... Qxh3+ {[%clk
0:00:07.3]} 39. Kxh3 {[%clk 0:00:09.7]} 39... Re3+ {[%clk 0:00:07.1]} 40. Kh2
{[%clk 0:00:09.4]} 40... Re2 {[%clk 0:00:07.2]} 41. a4 {[%clk 0:00:09.2]} 41...
Rc2 {[%clk 0:00:06.4]} 42. Bd4 {[%clk 0:00:08.5]} 42... h5 {[%clk 0:00:06.1]}
43. c5 {[%clk 0:00:08.5]} 43... a6 {[%clk 0:00:05.8]} 44. c6 {[%clk 0:00:08.1]}
44... g4 {[%clk 0:00:06.4]} 45. Kg3 {[%clk 0:00:08.1]} 45... Rd2 {[%clk
0:00:06]} 46. Bc4 {[%clk 0:00:02.4]} 46... h4+ {[%clk 0:00:04]} 47. Kxh4 {[%clk
0:00:02.4]} 47... Rxd4 {[%clk 0:00:02.9]} 48. c7 {[%clk 0:00:02.6]} 48... g3+
{[%clk 0:00:03.5]} 49. Kxg3 {[%clk 0:00:03]} 49... Kg7 {[%clk 0:00:03.9]} 50.
c8=Q {[%clk 0:00:03.3]} 50... Rd6 {[%clk 0:00:04.8]} 51. Qc7 {[%clk 0:00:03.4]}
51... Rg6+ {[%clk 0:00:04.8]} 52. Kf2 {[%clk 0:00:04.1]} 52... Rf6+ {[%clk
0:00:05.2]} 53. Ke3 {[%clk 0:00:04.7]} 53... Rg6 {[%clk 0:00:05.2]} 54. Qe5+
{[%clk 0:00:04.6]} 1-0